bitfinex/quotes_SOLUSD_20260220
["timestamp","ask_amount","ask_price","bid_price","bid_amount"]
[1771604216459,4.18328045,84.452,84.41,11.54713608]
[1771604216777,4.18328045,84.439,84.402,14.50602208]
[1771604216975,4.18328045,84.439,84.402,11.84806047]
[1771604218273,4.18328045,84.437,84.41,11.54713608]
[1771604218478,4.18328045,84.437,84.403,2.65796161]
[1771604219262,4.18328045,84.437,84.41,11.54713608]
[1771604219778,11.84300907,84.438,84.41,14.20509769]
[1771604220158,29.60520862,84.445,84.411,11.84679721]
[1771604220159,16.0253078,84.445,84.411,11.84679721]
[1771604220356,4.18328045,84.444,84.411,11.84679721]
[1771604220869,4.18328045,84.458,84.421,2.65796161]
[1771604221083,41.44022542,84.459,84.411,11.84679721]
[1771604221084,4.18328045,84.449,84.411,11.84679721]
[1771604221274,4.18328045,84.439,84.411,11.84679721]
[1771604221784,4.18328045,84.439,84.403,14.5058817]
[1771604222369,11.84300907,84.438,84.41,11.54713608]
[1771604222562,11.54713608,84.45,84.411,2.65796161]
[1771604222766,16.02250379,84.465,84.431,2.65796161]
[1771604222971,4.18328045,84.449,84.41,11.54713608]
[1771604223278,11.83922334,84.465,84.404,2.65796161]
[1771604223279,4.18328045,84.439,84.404,2.65796161]
[1771604223683,4.18328045,84.429,84.4,11.84822283]
[1771604224477,16.02769225,84.428,84.4,11.84822283]
[1771604224681,4.18328045,84.427,84.4,11.84822283]
[1771604224984,4.18328045,84.427,84.4,23.39535891]
[1771604225191,4.18328045,84.427,84.396,11.8487979]
[1771604225381,4.18328045,84.427,84.39,11.54713608]
[1771604225382,4.18328045,84.419,84.39,11.8496758]
[1771604226093,4.31923271,84.409,84.371,11.85241374]
[1771604226489,4.31923271,84.407,84.371,11.85241374]
[1771604226692,4.31923271,84.407,84.35,3.89383402]
[1771604226693,4.27604038,84.369,84.34,0.2]
[1771604226989,11.54713608,84.35,84.33,1e-08]
[1771604227179,4.27604038,84.35,84.33,1e-08]
[1771604227388,4.27604038,84.359,84.33,1e-08]
[1771604227685,11.54713608,84.35,84.33,1e-08]
[1771604227891,4.27604038,84.359,84.33,1e-08]
[1771604228286,4.27604038,84.349,84.33,1e-08]
[1771604228482,41.49475979,84.348,84.33,1e-08]
[1771604228787,4.27604038,84.347,84.33,1e-08]
[1771604229376,4.27604038,84.339,84.294,10.23904516]
[1771604229571,11.54713608,84.33,84.295,11.86309982]
[1771604229776,11.54713608,84.33,84.29,41.40635477]
[1771604229777,11.54713608,84.32,84.296,4.05830969]
[1771604229976,15.82317646,84.34,84.301,4.05830969]
[1771604230196,11.54713608,84.32,84.29,0.2]
[1771604230377,4.27604038,84.319,84.29,0.2]
[1771604230579,11.85986384,84.318,84.29,0.2]
[1771604231392,11.85831683,84.329,84.301,4.05830969]
[1771604231792,11.54713608,84.32,84.292,16.65380774]
[1771604232285,4.27604038,84.339,84.294,4.05830969]
[1771604232487,4.27604038,84.339,84.301,4.05830969]
[1771604232672,47.39658154,84.395,84.311,4.05830969]
[1771604232673,4.27604038,84.348,84.311,4.05830969]
[1771604233101,11.54713608,84.34,84.311,4.05830969]
[1771604233398,11.54713608,84.34,84.302,11.86211477]
[1771604233399,11.54713608,84.32,84.292,16.65380774]
[1771604233596,11.54713608,84.32,84.294,4.05830969]
[1771604233897,4.27604038,84.329,84.292,16.65380774]
[1771604234192,4.27604038,84.321,84.293,11.8633813]
[1771604234399,4.27604038,84.329,84.293,4.05830969]
[1771604234589,11.85972319,84.319,84.292,20.71211743]
[1771604235187,11.85972319,84.319,84.292,16.65380774]
[1771604235188,4.27604038,84.318,84.292,16.65380774]
[1771604235393,11.85972319,84.319,84.292,16.65380774]
[1771604235694,11.85972319,84.319,84.293,4.05830969]
[1771604236098,11.85905715,84.324,84.293,15.92169099]
[1771604236310,11.85844067,84.329,84.294,4.05830969]
[1771604236599,11.85733257,84.336,84.301,4.05830969]
[1771604237191,11.54713608,84.34,84.301,4.05830969]
[1771604237389,11.8559194,84.347,84.311,4.05830969]
[1771604238002,11.54713608,84.34,84.311,4.05830969]
[1771604238902,11.54713608,84.34,84.313,4.05830969]
[1771604239087,11.85567465,84.348,84.313,4.05830969]
[1771604239399,11.54713608,84.34,84.313,4.05830969]
[1771604240099,11.85567465,84.348,84.313,4.05830969]
[1771604240893,11.85567465,84.348,84.304,29.65432135]
[1771604240894,4.27604038,84.329,84.297,11.86270359]
[1771604241095,11.54713608,84.33,84.298,4.05830969]
[1771604241287,11.54713608,84.34,84.301,4.05830969]
[1771604241486,11.85567465,84.348,84.311,4.05830969]
[1771604242304,11.54713608,84.34,84.311,4.05830969]
[1771604242495,11.54713608,84.33,84.301,4.05830969]
[1771604242889,11.85831683,84.329,84.302,11.86211477]
[1771604243209,11.85831683,84.329,84.302,15.92042446]
[1771604243405,11.85831683,84.329,84.303,4.05830969]
[1771604243592,11.54713608,84.34,84.303,4.05830969]
[1771604243793,11.85438078,84.357,84.311,4.05830969]
[1771604244111,16.13042116,84.357,84.311,4.05830969]
[1771604244694,120.53042116,84.357,84.311,4.05830969]
[1771604244898,150.16637312,84.357,84.311,4.05830969]
[1771604245105,45.76637312,84.357,84.313,4.05830969]
[1771604245310,11.85438078,84.357,84.321,4.05830969]
[1771604246008,11.85438078,84.357,84.312,41.51247745]
[1771604246009,11.85438078,84.357,84.331,4.05830969]
[1771604246387,4.27604038,84.365,84.331,4.05830969]
[1771604246585,11.54713608,84.37,84.331,4.05830969]
[1771604246586,16.12873509,84.369,84.331,4.05830969]
[1771604246793,11.85269471,84.369,84.341,4.05830969]
[1771604247200,4.27604038,84.387,84.351,4.05830969]
[1771604247406,11.54713608,84.39,84.361,4.05830969]
[1771604247407,11.85030692,84.386,84.361,4.05830969]
[1771604247998,11.54713608,84.38,84.361,4.05830969]
[1771604248315,11.85030692,84.386,84.351,4.05830969]
[1771604248808,16.1263473,84.386,84.351,4.05830969]
[1771604249008,4.27604038,84.385,84.351,4.05830969]
[1771604249211,11.85058778,84.384,84.353,4.05830969]
[1771604249710,11.85058778,84.384,84.331,0.14216157]
[1771604249711,4.27604038,84.379,84.341,4.05830969]
[1771604250011,4.27604038,84.369,84.341,4.05830969]
[1771604250224,4.27604038,84.369,84.322,4.05830969]
[1771604250713,4.27604038,84.369,84.331,4.05830969]
[1771604251298,11.57884009,84.38,84.341,4.05830969]
[1771604251299,11.85157092,84.377,84.341,4.05830969]
[1771604252301,41.48049823,84.377,84.341,4.05830969]
[1771604252511,41.48049823,84.377,84.332,41.50263244]
[1771604252512,11.85080421,84.383,84.351,4.05830969]
[1771604252812,4.27604038,84.382,84.351,4.05830969]
[1771604253016,11.85080421,84.383,84.351,4.05830969]
[1771604253220,11.84988564,84.389,84.361,4.05830969]
[1771604253397,4.27604038,84.379,84.341,4.05830969]
[1771604253599,11.57884009,84.35,84.309,11.86107179]
[1771604253809,242.92265577,84.389,84.306,11.86155196]
[1771604253810,11.57884009,84.33,84.306,11.86155196]
[1771604254315,11.57884009,84.33,84.297,4.05830969]
[1771604254524,11.57884009,84.31,84.29,0.2]
[1771604254815,15.85488047,84.34,84.301,4.05830969]
[1771604255005,4.27604038,84.339,84.301,4.05830969]
[1771604255196,11.57884009,84.33,84.301,4.05830969]
[1771604255592,11.85634214,84.344,84.311,4.05830969]
[1771604255915,4.27604038,84.343,84.311,4.05830969]
[1771604256119,11.85634214,84.344,84.321,4.05830969]
[1771604257398,15.68153182,84.34,84.312,4.16031682]
[1771604257817,11.8555051,84.349,84.312,4.16031682]
[1771604258111,4.10269173,84.348,84.312,4.16031682]
[1771604258502,4.10269173,84.339,84.302,11.86202668]
[1771604258702,4.10269173,84.339,84.303,4.16031682]
[1771604259309,4.10269173,84.329,84.293,4.16031682]
[1771604259521,4.10269173,84.327,84.295,4.16031682]
[1771604260331,11.57884009,84.31,84.292,16.65380774]
[1771604260618,15.68153182,84.31,84.292,16.65380774]
[1771604260822,4.10269173,84.299,84.27,0.2]
[1771604261518,4.10269173,84.297,84.27,12.06661611]
[1771604261699,41.50903117,84.319,84.281,4.16031682]
[1771604261998,11.57884009,84.3,84.271,4.16031682]
[1771604262416,4.10269173,84.299,84.271,4.16031682]
[1771604262793,11.57884009,84.29,84.27,0.2]
[1771604262998,11.57884009,84.28,84.26,0.2]
[1771604263520,4.10269173,84.289,84.26,0.2]
[1771604263721,11.57884009,84.28,84.26,0.2]
[1771604264106,4.10269173,84.287,84.26,0.2]
[1771604264309,11.86408504,84.288,84.26,4.36031682]
[1771604264618,41.51986428,84.297,84.262,4.16031682]
[1771604264825,11.57884009,84.29,84.262,4.16031682]
[1771604265633,11.86091229,84.311,84.281,4.16031682]
[1771604265942,11.85849213,84.328,84.291,4.16031682]
[1771604266229,11.85849213,84.328,84.29,11.57884009]
[1771604266230,11.85849213,84.328,84.301,4.16031682]
[1771604266415,11.85849213,84.328,84.291,4.16031682]
[1771604266730,15.96118386,84.328,84.291,4.16031682]
[1771604266933,11.85849213,84.328,84.3,11.57884009]
[1771604267112,11.85849213,84.328,84.301,4.16031682]
[1771604267313,4.10269173,84.362,84.3,11.57884009]
[1771604267514,4.10269173,84.362,84.282,41.52725374]
[1771604267515,11.57884009,84.36,84.321,4.16031682]
[1771604267837,11.85409974,84.359,84.323,4.16031682]
[1771604268417,41.48934909,84.359,84.323,4.16031682]
[1771604269631,47.40353982,84.382,84.31,11.57884009]
[1771604269632,11.84921369,84.394,84.351,4.16031682]
[1771604269816,11.84707791,84.409,84.371,4.16031682]
[1771604270237,4.10269173,84.408,84.371,4.16031682]
[1771604270852,41.4647727,84.409,84.381,4.16031682]
[1771604271011,4.10269173,84.399,84.361,4.16031682]
[1771604271214,11.57884009,84.39,84.361,4.16031682]
[1771604271440,4.10269173,84.379,84.341,4.16031682]
[1771604271641,4.10269173,84.379,84.342,4.16031682]
[1771604271856,11.85143046,84.378,84.342,4.16031682]
[1771604272220,11.57884009,84.37,84.342,4.16031682]
[1771604272448,15.68153182,84.37,84.332,16.01813558]
[1771604272630,11.57884009,84.36,84.332,4.16031682]
[1771604273542,4.10269173,84.369,84.332,4.16031682]
[1771604273745,11.85143046,84.378,84.341,4.16031682]
[1771604273950,11.85143046,84.378,84.351,4.16031682]
[1771604275130,11.85143046,84.378,84.321,0.14216157]
[1771604275131,4.10269173,84.359,84.316,4.16031682]
[1771604275342,11.57884009,84.34,84.316,4.16031682]
[1771604275944,11.8569108,84.339,84.316,4.16031682]
[1771604276428,11.85563947,84.349,84.318,4.16031682]
[1771604278043,11.85509413,84.352,84.321,4.16031682]
[1771604278345,11.57884009,84.36,84.321,4.16031682]
[1771604278346,11.85444186,84.357,84.321,4.16031682]
[1771604278647,11.57884009,84.35,84.321,4.16031682]
[1771604279141,11.85444186,84.357,84.321,4.16031682]
[1771604280146,11.57884009,84.35,84.321,4.16031682]
[1771604280445,11.57884009,84.35,84.322,11.85930124]
[1771604280651,11.85444186,84.357,84.323,4.16031682]
[1771604280831,11.57884009,84.36,84.323,4.16031682]
[1771604281647,29.63099082,84.372,84.331,4.16031682]
[1771604281850,29.63099082,84.372,84.322,41.50755436]
[1771604281851,11.57884009,84.38,84.341,4.16031682]
[1771604282141,11.85129001,84.379,84.343,4.16031682]
[1771604282443,11.57884009,84.35,84.321,4.16031682]
[1771604282648,4.10269173,84.36,84.265,47.46879997]
[1771604282649,11.57884009,84.33,84.301,4.16031682]
[1771604282954,11.57884009,84.32,84.282,4.16031682]
[1771604283131,11.57884009,84.33,84.291,4.16031682]
[1771604283335,290.3566053,84.379,84.283,0.42648471]
[1771604283336,11.57884009,84.34,84.301,4.16031682]
[1771604283639,11.57884009,84.37,84.331,4.16031682]
[1771604283851,11.85129001,84.379,84.331,4.16031682]
[1771604284144,11.85129001,84.379,84.351,4.16031682]
[1771604284337,29.62155572,84.398,84.351,4.16031682]
[1771604284543,11.57884009,84.4,84.361,4.16031682]
[1771604285129,11.84792009,84.403,84.371,4.16031682]
[1771604285527,11.84730188,84.408,84.381,4.16031682]
[1771604285929,11.84730188,84.408,84.37,4.42609828]
[1771604286141,11.57884009,84.4,84.37,4.42609828]
[1771604286341,11.84848161,84.399,84.37,4.42609828]
[1771604286541,11.84795509,84.403,84.371,4.42609828]
[1771604286941,11.57884009,84.4,84.371,4.42609828]
[1771604287144,11.84795509,84.403,84.372,4.31682386]
[1771604287452,11.84795509,84.403,84.371,11.85241374]
[1771604287453,11.57884009,84.42,84.381,4.31682386]
[1771604287653,11.84427151,84.429,84.391,4.31682386]
[1771604287953,11.84286881,84.439,84.401,4.31682386]
[1771604288155,11.57884009,84.43,84.401,4.31682386]
[1771604288340,11.57884009,84.41,84.38,4.31682386]
[1771604288850,11.57884009,84.4,84.369,4.31682386]
[1771604289052,11.57884009,84.41,84.371,4.31682386]
[1771604289246,11.57884009,84.4,84.371,4.31682386]
[1771604289954,11.57884009,84.4,84.364,11.85325727]
[1771604290139,4.05976004,84.399,84.364,11.85325727]
[1771604290347,11.57884009,84.4,84.365,4.31682386]
[1771604290849,11.84848161,84.399,84.367,4.31682386]
[1771604291956,11.57884009,84.43,84.391,4.31682386]
[1771604292846,11.57884009,84.42,84.38,11.57884009]
[1771604293050,11.57884009,84.41,84.381,4.31682386]
[1771604293253,4.05976004,84.418,84.381,4.31682386]
[1771604293453,11.57884009,84.4,84.371,16.1692376]
[1771604293658,4.05976004,84.409,84.371,16.1692376]
[1771604293861,4.05976004,84.409,84.371,4.31682386]
[1771604293862,11.57884009,84.4,84.371,4.31682386]
[1771604294037,4.05976004,84.409,84.361,4.31682386]
[1771604294240,4.05976004,84.389,84.351,4.31682386]
[1771604294656,4.05976004,84.379,84.33,11.57884009]
[1771604294859,11.57884009,84.34,84.309,4.31682386]
[1771604295058,11.85409974,84.359,84.311,4.31682386]
[1771604295364,11.85283519,84.368,84.331,4.31682386]
[1771604295843,11.85283519,84.368,84.31,41.51346221]
[1771604295844,11.57884009,84.38,84.341,4.31682386]
[1771604296175,4.05976004,84.369,84.33,4.31682386]
[1771604296360,11.57884009,84.35,84.318,4.31682386]
[1771604297039,11.57884009,84.37,84.321,4.31682386]
[1771604297238,11.57884009,84.37,84.333,4.31682386]
[1771604297449,11.85176127,84.376,84.341,4.31682386]
[1771604299055,11.57884009,84.37,84.341,4.31682386]
[1771604299253,15.91152131,84.376,84.343,4.31682386]
[1771604299254,11.85176127,84.376,84.343,4.31682386]
[1771604299645,11.85120521,84.38,84.343,4.31682386]
[1771604300057,53.0579192,84.38,84.343,4.31682386]
[1771604300459,4.05976004,84.379,84.343,4.31682386]
[1771604301455,11.85143046,84.378,84.343,4.31682386]
[1771604301651,104.4,84.377,84.343,4.31682386]
[1771604301844,104.4,84.377,84.344,11.85620791]
[1771604302048,104.4,84.377,84.345,4.31682386]
[1771604303348,116.25143046,84.378,84.345,4.31682386]
[1771604303867,149.93976666,84.378,84.345,4.31682386]
[1771604304082,4.05976004,84.369,84.333,4.31682386]
[1771604304767,11.57884009,84.35,84.321,4.31682386]
[1771604305457,11.85424026,84.358,84.322,11.85930124]
[1771604305775,11.85424026,84.358,84.323,4.31682386]
[1771604306786,104.4,84.378,84.322,11.85930124]
[1771604306787,11.57884009,84.38,84.341,4.31682386]
[1771604306967,4.05976004,84.389,84.351,4.31682386]
[1771604307275,15.63860013,84.4,84.361,4.31682386]
[1771604307461,11.57884009,84.39,84.361,4.31682386]
[1771604307656,47.38558403,84.414,84.347,4.31682386]
[1771604307657,15.63860013,84.38,84.347,4.31682386]
[1771604307869,11.57884009,84.37,84.335,4.31682386]
[1771604308551,15.63860013,84.37,84.335,4.31682386]
[1771604309176,11.57884009,84.37,84.336,4.31682386]
[1771604309476,4.05976004,84.378,84.341,4.31682386]
[1771604309650,11.85157092,84.377,84.341,4.31682386]
[1771604310058,4.05976004,84.369,84.332,11.85780738]
[1771604310258,4.05976004,84.369,84.329,4.31682386]
[1771604310259,11.57884009,84.36,84.329,4.31682386]
[1771604311165,15.63860013,84.36,84.329,4.31682386]
[1771604311888,15.63860013,84.36,84.307,29.65326383]
[1771604311889,4.05976004,84.349,84.312,11.86060656]
[1771604312060,4.05976004,84.349,84.313,4.31682386]
[1771604312264,11.5858487,84.35,84.313,4.31682386]
[1771604313583,11.5858487,84.34,84.313,4.31682386]
[1771604314466,11.5858487,84.34,84.304,4.31682386]
[1771604314669,4.05976004,84.339,84.304,4.31682386]
[1771604314868,11.5858487,84.33,84.304,4.31682386]
[1771604315583,11.5858487,84.32,84.291,16.18042229]
[1771604315754,11.5858487,84.32,84.291,11.86359843]
[1771604315958,11.5858487,84.35,84.301,4.601147]
[1771604316557,11.5858487,84.34,84.301,4.601147]
[1771604316762,4.05976004,84.349,84.301,4.601147]
[1771604316972,4.05976004,84.349,84.311,4.31682386]
[1771604317165,11.5858487,84.35,84.311,4.31682386]
[1771604317371,11.85353768,84.363,84.31,11.5858487]
[1771604317372,11.5858487,84.36,84.313,4.3075189]
[1771604317572,11.5858487,84.36,84.301,0.42648471]
[1771604317573,11.85409974,84.359,84.322,11.85930124]
[1771604317783,11.85338978,84.365,84.33,11.5858487]
[1771604318084,11.85338978,84.365,84.331,4.3075189]
[1771604318294,11.85002607,84.388,84.343,4.3075189]
[1771604318461,11.848622,84.398,84.353,4.3075189]
[1771604318660,11.848622,84.398,84.361,4.3075189]
[1771604318873,4.17704038,84.397,84.361,4.3075189]
[1771604319476,11.5858487,84.39,84.343,4.3075189]
[1771604319664,11.84988564,84.389,84.351,4.3075189]
[1771604319987,41.47459976,84.389,84.351,4.3075189]
[1771604320378,11.84988564,84.389,84.351,4.3075189]
[1771604321087,11.5858487,84.4,84.35,11.5858487]
[1771604321088,4.17704038,84.397,84.353,4.3075189]
[1771604321475,15.76288908,84.39,84.353,4.3075189]
[1771604321679,4.17704038,84.39,84.353,4.3075189]
[1771604321874,11.84988564,84.389,84.354,4.3075189]
[1771604322074,4.17704038,84.388,84.354,4.3075189]
[1771604323596,11.85016649,84.387,84.354,4.3075189]
[1771604323789,11.85016649,84.387,84.355,11.85466184]
[1771604323990,11.84848161,84.399,84.361,4.3075189]
[1771604324513,16.02552199,84.399,84.361,4.3075189]
[1771604324808,4.17704038,84.398,84.361,4.3075189]
[1771604324967,4.17704038,84.398,84.341,0.14216157]
[1771604324968,4.17704038,84.389,84.352,4.3075189]
[1771604325298,4.17704038,84.379,84.341,16.44847167]
[1771604325598,11.5858487,84.36,84.331,4.3075189]
[1771604326675,4.17704038,84.369,84.332,4.3075189]
[1771604327488,11.85283519,84.368,84.334,4.3075189]
[1771604327693,4.17704038,84.367,84.334,4.3075189]
[1771604327909,11.5858487,84.36,84.334,4.3075189]
[1771604328072,11.5858487,84.35,84.321,4.3075189]
[1771604328472,15.76288908,84.34,84.309,11.86105987]
[1771604328708,11.5858487,84.35,84.311,4.3075189]
[1771604329595,11.8555051,84.349,84.313,4.3075189]
[1771604330092,29.6330416,84.366,84.313,4.3075189]
[1771604330278,11.85325668,84.365,84.321,4.3075189]
[1771604330479,41.48639838,84.365,84.321,4.3075189]
[1771604330680,4.17704038,84.349,84.312,11.86070784]
[1771604330881,41.48639838,84.365,84.308,11.86121207]
[1771604330882,11.5858487,84.34,84.308,11.86121207]
[1771604331082,11.5858487,84.36,84.313,4.3075189]
[1771604331280,41.48639838,84.365,84.321,4.3075189]
[1771604331281,45.66343876,84.365,84.321,4.3075189]
[1771604331478,11.5858487,84.35,84.321,4.3075189]
[1771604331875,11.5858487,84.35,84.31,11.5858487]
[1771604331876,4.17704038,84.348,84.311,16.16824271]
[1771604332076,4.17704038,84.348,84.312,4.3075189]
[1771604332275,11.8555051,84.349,84.312,4.3075189]
[1771604332477,41.49426785,84.349,84.312,4.3075189]
[1771604333296,11.85171138,84.376,84.331,4.3075189]
[1771604333599,29.63068087,84.373,84.331,4.3075189]
[1771604333895,29.63068087,84.373,84.333,4.3075189]
[1771604334277,29.63068087,84.373,84.34,11.5858487]
[1771604334468,29.63068087,84.373,84.34,15.8933676]
[1771604334673,4.17704038,84.369,84.331,4.3075189]
[1771604334873,4.17704038,84.369,84.332,4.3075189]
[1771604336000,11.85409974,84.359,84.332,4.3075189]
[1771604336213,4.42778921,84.349,84.313,11.86052779]
[1771604336376,4.42778921,84.349,84.3,11.5858487]
[1771604336776,4.42778921,84.339,84.3,11.5858487]
[1771604337197,4.42778921,84.339,84.301,41.5178942]
[1771604337397,4.42778921,84.339,84.301,11.86225548]
[1771604337698,11.85283519,84.368,84.33,11.5858487]
[1771604337882,11.5858487,84.38,84.301,41.5178942]
[1771604337883,11.85129001,84.379,84.34,11.5858487]
[1771604338194,11.85129001,84.379,84.336,4.3075189]
[1771604338195,4.42778921,84.378,84.336,4.3075189]
[1771604338395,4.42778921,84.378,84.337,11.85719197]
[1771604338602,4.42778921,84.378,84.338,4.3075189]
[1771604340399,4.42778921,84.376,84.341,4.3075189]
[1771604341187,4.42778921,84.369,84.32,11.5858487]
[1771604341401,4.42778921,84.349,84.313,4.3075189]
[1771604342105,11.5858487,84.34,84.313,4.3075189]
[1771604342296,4.42778921,84.34,84.313,4.3075189]
[1771604342495,11.8569108,84.339,84.314,11.8604265]
[1771604343305,4.42778921,84.34,84.314,16.1679454]
[1771604343525,11.85612226,84.345,84.315,4.3075189]
[1771604343809,4.42778921,84.349,84.315,4.3075189]
[1771604343993,4.42778921,84.347,84.314,11.8604265]
[1771604344195,4.42778921,84.347,84.315,4.3075189]
[1771604344389,11.85506428,84.353,84.321,4.3075189]
[1771604344716,11.5858487,84.37,84.321,4.3075189]
[1771604344717,4.42778921,84.378,84.341,4.3075189]
[1771604344894,11.85016649,84.387,84.35,11.5858487]
[1771604345098,4.42778921,84.386,84.351,4.3075189]
[1771604346612,4.35198712,84.377,84.342,4.48607276]
[1771604348309,4.35198712,84.377,84.342,16.34256181]
[1771604348501,4.35198712,84.377,84.343,4.26295958]
[1771604349414,4.44727319,84.375,84.338,11.85698293]
[1771604349615,4.44727319,84.375,84.338,16.11994251]
[1771604349799,4.44727319,84.375,84.339,4.26295958]
[1771604350000,41.48098984,84.376,84.312,4.26295958]
[1771604350001,4.44727319,84.359,84.312,4.26295958]
[1771604350301,11.5858487,84.35,84.312,4.26295958]
[1771604350508,4.44727319,84.349,84.312,4.26295958]
[1771604350706,104.4,84.358,84.312,4.26295958]
[1771604350707,11.5858487,84.34,84.312,4.26295958]
[1771604350912,4.44727319,84.341,84.312,4.26295958]
[1771604351098,16.03312189,84.35,84.312,4.26295958]
[1771604351297,11.8555051,84.349,84.314,4.26295958]
[1771604351616,4.44727319,84.348,84.314,4.26295958]
[1771604352920,11.8555051,84.41,84.313,11.86056717]
[1771604352921,11.85044735,84.385,84.341,4.26295958]
[1771604353100,41.47656573,84.385,84.351,4.26295958]
[1771604353299,45.92383892,84.385,84.351,4.26295958]
[1771604353915,4.44727319,84.379,84.337,11.85716314]
[1771604354121,4.44727319,84.379,84.333,11.85773405]
[1771604354310,4.44727319,84.379,84.334,4.26295958]
[1771604354514,4.44727319,84.359,84.324,4.26295958]
[1771604354696,4.44727319,84.359,84.326,4.26295958]
[1771604356001,4.44727319,84.357,84.326,4.26295958]
[1771604356210,4.44727319,84.349,84.312,4.26295958]
[1771604357521,11.85424026,84.358,84.321,4.26295958]
[1771604357826,4.44727319,84.349,84.312,4.26295958]
[1771604358199,41.48984091,84.358,84.321,4.26295958]
[1771604358200,11.85564565,84.348,84.321,4.26295958]
[1771604359404,11.85438078,84.357,84.321,4.26295958]
[1771604359725,4.44727319,84.383,84.351,4.26295958]
[1771604359902,4.44727319,84.379,84.33,11.5858487]
[1771604360301,4.44727319,84.377,84.331,11.85803559]
[1771604361123,11.8504895,84.385,84.35,11.5858487]
[1771604361331,4.44727319,84.384,84.35,11.5858487]
[1771604362026,11.84985796,84.39,84.36,11.5858487]
[1771604362416,4.44727319,84.39,84.361,11.8538187]
[1771604363331,11.84848161,84.399,84.361,11.8538187]
[1771604363332,4.44727319,84.398,84.361,11.8538187]
[1771604363622,4.44727319,84.398,84.362,4.26295958]
[1771604364225,4.44727319,84.398,84.351,0.28432314]
[1771604364226,4.44727319,84.389,84.35,11.5858487]
[1771604364516,4.44727319,84.387,84.351,11.855224]
[1771604365225,4.44727319,84.387,84.35,11.5858487]
[1771604365429,4.44727319,84.387,84.35,23.44109827]
[1771604365622,4.44727319,84.387,84.35,11.5858487]
[1771604365826,4.44727319,84.359,84.328,11.85845745]
[1771604366013,4.44727319,84.359,84.32,11.5858487]
[1771604366234,11.5858487,84.37,84.321,4.26295958]
[1771604366422,4.44727319,84.369,84.331,4.26295958]
[1771604366608,4.44727319,84.367,84.332,11.85789498]
[1771604367225,4.44727319,84.367,84.33,11.5858487]
[1771604367733,4.44727319,84.377,84.341,4.26295958]
[1771604368309,11.85114956,84.38,84.35,15.84880828]
[1771604368518,16.03312189,84.41,84.371,4.26295958]
[1771604368728,4.44727319,84.41,84.38,11.5858487]
[1771604368929,4.44727319,84.421,84.39,11.5858487]
[1771604369211,4.44727319,84.419,84.37,11.5858487]
[1771604369408,88.82677593,84.434,84.37,11.5858487]
[1771604369409,4.44727319,84.409,84.37,15.84880828]
[1771604369630,4.44727319,84.432,84.401,4.26295958]
[1771604369836,4.44727319,84.432,84.41,11.5858487]
[1771604370032,0.2,84.45,84.411,4.26295958]
[1771604370243,0.2,84.45,84.38,4.26295958]
[1771604370244,4.44727319,84.439,84.38,4.26295958]
[1771604370430,4.44727319,84.419,84.39,11.5858487]
[1771604370733,4.44727319,84.419,84.381,0.28432314]
[1771604370734,4.44727319,84.439,84.41,11.5858487]
[1771604370919,0.2,84.45,84.421,4.26295958]
[1771604371125,0.2,84.45,84.42,11.5858487]
[1771604371126,4.44727319,84.449,84.42,11.5858487]
[1771604371330,4.44727319,84.449,84.41,11.5858487]
[1771604371949,4.44727319,84.448,84.42,11.55669101]
[1771604372736,29.80345739,84.45,84.42,11.55669101]
[1771604372737,4.44727319,84.446,84.42,11.55669101]
[1771604373341,4.44727319,84.446,84.41,11.55669101]
[1771604373527,4.44727319,84.446,84.42,11.55669101]
[1771604374351,4.44727319,84.446,84.37,47.40972298]
[1771604374352,4.44727319,84.439,84.395,4.26295958]
[1771604374655,4.44727319,84.437,84.4,11.55669101]
[1771604375318,41.45053174,84.438,84.4,11.55669101]
[1771604375319,4.44727319,84.435,84.4,11.55669101]
[1771604375848,4.44727319,84.435,84.41,11.55669101]
[1771604376431,4.44727319,84.435,84.4,11.55669101]
[1771604376830,4.44727319,84.429,84.39,11.55669101]
[1771604377034,4.44727319,84.419,84.381,11.85092474]
[1771604377331,4.44727319,84.419,84.39,11.55669101]
[1771604377930,104.4,84.428,84.4,11.55669101]
[1771604378129,4.45229838,84.427,84.4,11.55669101]
[1771604378821,11.8443163,84.429,84.41,11.55669101]
[1771604379020,11.84368468,84.434,84.41,11.55669101]
[1771604379265,4.45229838,84.433,84.4,11.55669101]
[1771604379428,4.45229838,84.429,84.39,11.55669101]
[1771604380147,11.55669101,84.43,84.38,11.55669101]
[1771604380148,4.45229838,84.419,84.38,11.55669101]
[1771604381040,4.45229838,84.409,84.38,11.55669101]
[1771604382143,45.91265043,84.418,84.39,11.55669101]
[1771604382341,4.45229838,84.417,84.39,11.55669101]
[1771604382926,4.45229838,84.415,84.38,11.55669101]
[1771604383738,4.45229838,84.409,84.38,11.55669101]
[1771604384652,4.45229838,84.409,84.37,23.40914131]
[1771604385149,4.45229838,84.407,84.38,11.55669101]
[1771604386043,4.45229838,84.407,84.37,23.40914131]
[1771604387750,11.84749899,84.406,84.37,23.40914131]
[1771604387943,4.45229838,84.399,84.362,11.8536632]
[1771604388146,4.45229838,84.389,84.36,11.55669101]
[1771604388343,4.45229838,84.379,84.341,4.16125866]
[1771604388647,4.45229838,84.369,84.331,4.16125866]